bitfinex/quotes_BTCUSD_20241014
["timestamp","ask_amount","ask_price","bid_price","bid_amount"]
[1728875219890,0.176519,62775.0,62774.0,4.87013148]
[1728875220309,0.093519,62775.0,62774.0,4.87013148]
[1728875220804,0.093519,62775.0,62774.0,4.86613148]
[1728875221016,0.093519,62775.0,62774.0,4.86913148]
[1728875221222,0.093519,62775.0,62774.0,4.86413148]
[1728875221864,0.093519,62775.0,62774.0,4.86513148]
[1728875222091,0.093519,62775.0,62774.0,4.87013148]
[1728875222975,0.000819,62775.0,62774.0,4.87013148]
[1728875224745,0.000819,62775.0,62774.0,4.86954424]
[1728875224954,0.000819,62775.0,62774.0,4.87013148]
[1728875225604,0.000819,62775.0,62774.0,4.75754993]
[1728875226056,0.093719,62775.0,62774.0,4.75754993]
[1728875229815,0.170119,62775.0,62774.0,4.75754993]
[1728875230681,0.170119,62775.0,62774.0,4.75696269]
[1728875231613,0.170119,62775.0,62774.0,4.75754993]
[1728875235751,0.170119,62775.0,62774.0,4.75696269]
[1728875235966,0.170119,62775.0,62774.0,4.75754993]
[1728875237460,0.170119,62775.0,62774.0,4.75696269]
[1728875237461,0.17410162,62775.0,62774.0,4.75696269]
[1728875237877,0.17410162,62775.0,62774.0,4.75754993]
[1728875238579,0.17410162,62775.0,62774.0,4.75696269]
[1728875239024,0.17410162,62775.0,62774.0,4.75754993]
[1728875239260,0.17410162,62775.0,62774.0,4.75696269]
[1728875239506,0.17410162,62775.0,62774.0,4.59766169]
[1728875240162,0.49462463,62775.0,62774.0,4.59766169]
[1728875240395,0.56236182,62775.0,62774.0,4.59766169]
[1728875240616,0.65747348,62775.0,62774.0,4.59266169]
[1728875241046,0.75309989,62775.0,62774.0,4.59266169]
[1728875241268,0.75309989,62775.0,62774.0,4.58866169]
[1728875241484,0.75309989,62775.0,62774.0,4.59266169]
[1728875241707,0.49064201,62775.0,62774.0,4.59066169]
[1728875242193,0.65837384,62775.0,62774.0,4.58866169]
[1728875242610,0.79907121,62775.0,62774.0,4.58866169]
[1728875242858,0.7993305,62775.0,62774.0,4.58866169]
[1728875243347,0.7993305,62775.0,62774.0,4.58966169]
[1728875243594,1.04482182,62775.0,62774.0,4.58966169]
[1728875243813,0.8983305,62775.0,62774.0,4.58966169]
[1728875244263,0.8993305,62775.0,62774.0,4.59066169]
[1728875244476,0.8993305,62775.0,62774.0,4.58866169]
[1728875244716,0.8993305,62775.0,62774.0,4.59066169]
[1728875244952,0.9003305,62775.0,62774.0,4.59066169]
[1728875245179,0.90028271,62775.0,62774.0,4.59066169]
[1728875245402,0.90028271,62775.0,62774.0,4.58966169]
[1728875245628,0.89828271,62775.0,62774.0,4.58866169]
[1728875245858,0.92424452,62775.0,62774.0,4.59066169]
[1728875246079,0.7582534,62775.0,62774.0,4.59066169]
[1728875246312,0.92394337,62775.0,62774.0,4.59066169]
[1728875247446,0.7582534,62775.0,62774.0,4.59066169]
[1728875247666,0.92391794,62775.0,62774.0,4.59066169]
[1728875247885,0.92591794,62775.0,62774.0,4.59066169]
[1728875248784,0.94073806,62775.0,62774.0,4.59066169]
[1728875249689,1.05810211,62775.0,62774.0,4.59066169]
[1728875249912,1.06009985,62775.0,62774.0,4.59066169]
[1728875250604,0.9407358,62775.0,62774.0,4.59066169]
[1728875251807,1.03619662,62775.0,62774.0,4.59066169]
[1728875252254,1.06009985,62775.0,62774.0,4.59066169]
[1728875252469,1.04518375,62775.0,62774.0,4.59066169]
[1728875252716,0.94073178,62775.0,62774.0,4.59066169]
[1728875252939,0.91576997,62775.0,62774.0,4.59066169]
[1728875253416,0.91576914,62775.0,62774.0,4.59066169]
[1728875253632,0.91376914,62775.0,62774.0,4.59066169]
[1728875253865,1.02635069,62775.0,62774.0,4.59066169]
[1728875254581,0.77648453,62775.0,62774.0,4.59066169]
[1728875255027,0.68249207,62775.0,62774.0,4.59066169]
[1728875256134,0.70745351,62775.0,62774.0,4.59066169]
[1728875256561,0.63587967,62775.0,62774.0,4.59066169]
[1728875259757,0.62096842,62775.0,62774.0,4.59066169]
[1728875259979,0.63588325,62775.0,62774.0,4.59066169]
[1728875260665,0.63588507,62775.0,62774.0,4.59066169]
[1728875261344,0.70745891,62775.0,62774.0,4.59066169]
[1728875261578,0.63588507,62775.0,62774.0,4.59066169]
[1728875262001,0.70744444,62775.0,62774.0,4.59066169]
[1728875263102,0.682483,62775.0,62774.0,4.59066169]
[1728875265976,0.70744452,62775.0,62774.0,4.59066169]
[1728875266603,0.70944452,62775.0,62774.0,4.59066169]
[1728875266807,1.06015665,62775.0,62774.0,4.59066169]
[1728875267289,1.05815665,62775.0,62774.0,4.59066169]
[1728875268595,1.05824166,62775.0,62774.0,4.59066169]
[1728875268812,0.79725486,62775.0,62774.0,4.59066169]
[1728875269487,1.46283864,62775.0,62774.0,4.59066169]
[1728875269712,1.55825113,62775.0,62774.0,4.59066169]
[1728875270159,1.5582673,62775.0,62774.0,4.59066169]
[1728875271308,1.29725486,62775.0,62774.0,4.59066169]
[1728875271761,1.55834204,62775.0,62774.0,4.59066169]
[1728875272255,1.56034204,62775.0,62774.0,4.59066169]
[1728875272489,1.55834204,62775.0,62774.0,4.59066169]
[1728875272957,1.53338052,62775.0,62774.0,4.59066169]
[1728875273681,1.43796803,62775.0,62774.0,4.59066169]
[1728875273901,1.42305138,62775.0,62774.0,4.59066169]
[1728875274808,1.43801695,62775.0,62774.0,4.59066169]
[1728875275530,1.55728256,62775.0,62774.0,4.59066169]
[1728875275759,1.55734792,62775.0,62774.0,4.59066169]
[1728875276210,1.58230971,62775.0,62774.0,4.59464555]
[1728875276651,1.46293147,62775.0,62774.0,4.59464555]
[1728875277159,1.46294366,62775.0,62774.0,4.59464555]
[1728875277840,1.44797809,62775.0,62774.0,4.59464555]
[1728875280681,1.28660838,62775.0,62774.0,4.59464555]
[1728875281381,1.21020838,62775.0,62774.0,4.59464555]
[1728875282944,1.18524659,62775.0,62774.0,4.59464555]
[1728875284811,1.32852161,62775.0,62774.0,4.59464555]
[1728875285735,1.18524659,62775.0,62774.0,4.59464555]
[1728875287310,1.21020759,62775.0,62774.0,4.59464555]
[1728875288647,1.21061988,62775.0,62774.0,4.59464555]
[1728875291817,1.21065481,62775.0,62774.0,4.59464555]
[1728875292917,1.18569381,62775.0,62774.0,4.59464555]
[1728875293389,1.18569647,62775.0,62774.0,4.59464555]
[1728875297403,1.21065782,62775.0,62774.0,4.59464555]
[1728875297623,1.28845782,62775.0,62774.0,4.59464555]
[1728875297850,1.40103937,62775.0,62774.0,4.59464555]
[1728875298758,1.40303937,62775.0,62774.0,4.59464555]
[1728875299408,1.56240908,62775.0,62774.0,4.59464555]
[1728875299636,1.56440908,62775.0,62774.0,4.59464555]
[1728875299855,1.40303937,62775.0,62774.0,4.59464555]
[1728875301011,1.40103937,62775.0,62774.0,4.59464555]
[1728875301237,1.28845782,62775.0,62774.0,4.59464555]
[1728875303003,1.26349647,62775.0,62774.0,4.59464555]
[1728875304943,0.98838371,62775.0,62774.0,4.59464555]
[1728875305215,0.78757402,62775.0,62774.0,4.7072271]
[1728875305449,0.50177121,62775.0,62774.0,4.8665281]
[1728875305697,0.54962971,62775.0,62774.0,4.8665281]
[1728875305915,0.50177121,62775.0,62774.0,4.8665281]
[1728875306147,0.52672922,62775.0,62774.0,4.8665281]
[1728875306372,0.52672922,62775.0,62774.0,4.9482281]
[1728875306604,0.52672922,62775.0,62774.0,4.9472281]
[1728875306825,0.52672922,62775.0,62774.0,4.9482281]
[1728875307045,0.52672922,62775.0,62774.0,4.9472281]
[1728875307046,0.52572922,62775.0,62774.0,4.9472281]
[1728875307515,0.52672922,62775.0,62774.0,4.9462281]
[1728875307762,0.52672922,62775.0,62774.0,5.05939689]
[1728875307980,0.50177121,62775.0,62774.0,5.05939689]
[1728875308417,0.00177121,62775.0,62774.0,4.94681534]
[1728875308638,0.00177121,62775.0,62774.0,5.05939689]
[1728875308858,0.00177121,62775.0,62774.0,4.94681534]
[1728875312094,0.00177121,62775.0,62774.0,4.94674316]
[1728875315602,0.00177121,62775.0,62774.0,5.05932471]
[1728875315855,0.00177121,62775.0,62774.0,4.94674316]
[1728875317025,0.00177121,62775.0,62774.0,5.05932471]
[1728875317473,0.00177121,62775.0,62774.0,4.94674316]
[1728875321464,0.00177121,62775.0,62774.0,5.05932471]
[1728875321699,0.00177121,62775.0,62774.0,5.07131461]
[1728875325218,0.00177121,62775.0,62774.0,5.10327461]
[1728875325919,0.00077121,62775.0,62774.0,5.10327461]
[1728875326152,0.00177121,62775.0,62774.0,5.10327461]
[1728875326385,0.00077121,62775.0,62774.0,5.10327461]
[1728875326858,0.00077121,62775.0,62774.0,5.11027461]
[1728875327395,0.00077121,62775.0,62774.0,5.43519862]
[1728875327631,0.00077121,62775.0,62774.0,5.43319862]
[1728875328139,0.00077121,62775.0,62774.0,5.43919862]
[1728875328566,0.00077121,62775.0,62774.0,5.43319862]
[1728875328802,0.00077121,62775.0,62774.0,5.43919862]
[1728875329278,0.00077121,62775.0,62774.0,5.44019862]
[1728875329513,0.00077121,62775.0,62774.0,5.42619862]
[1728875329765,0.00077121,62775.0,62774.0,5.45119862]
[1728875330985,0.00077121,62775.0,62774.0,5.22603552]
[1728875331213,0.00077121,62775.0,62774.0,5.45119862]
[1728875342895,0.00077121,62775.0,62774.0,5.38949862]
[1728875343851,0.00077121,62775.0,62774.0,5.45619862]
[1728875344809,0.00077121,62775.0,62774.0,5.44419862]
[1728875345038,0.00077121,62775.0,62774.0,5.43319862]
[1728875345256,0.00077121,62775.0,62774.0,5.45919862]
[1728875347817,0.00077121,62775.0,62774.0,5.31579862]
[1728875359274,0.09307121,62775.0,62774.0,4.82441151]
[1728875359522,0.09307121,62775.0,62774.0,4.93699306]
[1728875360213,0.09307121,62775.0,62774.0,5.21079862]
[1728875360438,0.00077121,62775.0,62774.0,5.21079862]
[1728875362773,0.00077121,62775.0,62774.0,5.09821707]
[1728875363442,0.00077121,62775.0,62774.0,5.21079862]
[1728875364650,0.00077121,62775.0,62774.0,5.09821707]
[1728875364882,0.00077121,62775.0,62774.0,4.98563552]
[1728875365119,0.00077121,62775.0,62774.0,5.21079862]
[1728875365368,0.00077121,62775.0,62774.0,5.09821707]
[1728875366087,0.00077121,62775.0,62774.0,5.21079862]
[1728875366315,0.00077121,62775.0,62774.0,5.09821707]
[1728875366547,0.00077121,62775.0,62774.0,5.21079862]
[1728875368409,0.00077121,62775.0,62774.0,5.09821707]
[1728875368627,0.00077121,62775.0,62774.0,5.21079862]
[1728875370441,0.00077121,62775.0,62774.0,5.09821707]
[1728875371097,0.00077121,62775.0,62774.0,5.14593803]
[1728875372316,0.00077121,62775.0,62774.0,5.14594644]
[1728875373251,0.09777121,62775.0,62774.0,5.14594644]
[1728875373731,0.09777121,62775.0,62774.0,5.14595396]
[1728875374401,0.09777121,62775.0,62774.0,5.1411895]
[1728875374638,0.09777121,62775.0,62774.0,5.14592409]
[1728875375123,0.09777121,62775.0,62774.0,4.87211853]
[1728875375356,0.17807121,62775.0,62774.0,4.93696319]
[1728875375822,0.17807121,62775.0,62774.0,4.98470008]
[1728875376964,0.17807121,62775.0,62774.0,4.98469568]
[1728875378354,0.17807121,62775.0,62774.0,4.82438164]
[1728875378580,0.17807121,62775.0,62774.0,4.93696319]
[1728875379751,0.17807121,62775.0,62774.0,4.98469568]
[1728875380103,0.17807121,62775.0,62774.0,4.93696319]
[1728875380206,0.17807121,62775.0,62774.0,4.98469568]
[1728875380456,0.17807121,62775.0,62774.0,4.93696319]
[1728875380694,0.17807121,62775.0,62774.0,4.82438164]
[1728875380939,0.17807121,62775.0,62774.0,4.93696319]
[1728875382324,0.17807121,62775.0,62774.0,4.82438164]
[1728875382583,0.17807121,62775.0,62774.0,4.92497329]
[1728875383536,0.19302791,62775.0,62774.0,4.92497329]
[1728875384479,0.19302729,62775.0,62774.0,4.92497329]
[1728875387940,0.19302611,62775.0,62774.0,4.92497329]
[1728875388405,0.17807121,62775.0,62774.0,4.92497329]
[1728875396798,0.09777121,62775.0,62774.0,4.92497329]
[1728875397032,0.00077121,62775.0,62774.0,5.19877885]
[1728875397269,0.00077121,62775.0,62774.0,5.24650403]
[1728875398624,0.00077121,62775.0,62774.0,5.19877885]
[1728875399273,0.00077121,62775.0,62774.0,5.24650403]
[1728875400167,0.00077121,62775.0,62774.0,5.19877885]
[1728875400398,0.00077121,62775.0,62774.0,5.24650403]
[1728875400568,0.00077121,62775.0,62774.0,5.24650635]
[1728875402438,0.00077121,62775.0,62774.0,5.1339248]
[1728875402643,0.09707121,62775.0,62774.0,4.97361575]
[1728875402980,0.09707121,62775.0,62774.0,5.0861973]
[1728875408051,0.09707121,62775.0,62774.0,4.92497329]
[1728875409335,0.09707121,62775.0,62774.0,5.03755484]
[1728875412559,0.00077121,62775.0,62774.0,5.19877885]
[1728875414751,0.00077121,62775.0,62774.0,5.22177885]
[1728875414969,0.00077121,62775.0,62774.0,5.85564071]
[1728875415193,0.00077121,62775.0,62774.0,5.74305916]
[1728875417852,0.00077121,62775.0,62774.0,5.74105916]
[1728875418077,0.00077121,62775.0,62774.0,5.74095808]
[1728875418305,0.00077121,62775.0,62774.0,5.71710866]
[1728875419238,0.00077121,62775.0,62774.0,5.65540866]
[1728875420345,0.00077121,62775.0,62774.0,5.48132913]
[1728875420551,0.00077121,62775.0,62774.0,5.47932913]
[1728875421024,0.00077121,62775.0,62774.0,5.65539496]
[1728875421251,0.00077121,62775.0,62774.0,5.65739496]
[1728875421698,0.00077121,62775.0,62774.0,5.65539496]
[1728875422604,0.00077121,62775.0,62774.0,5.65732791]
[1728875423249,0.00077121,62775.0,62774.0,5.65732444]
[1728875423699,0.00077121,62775.0,62774.0,5.65532444]
[1728875424147,0.00077121,62775.0,62774.0,5.65532161]
[1728875425283,0.00027121,62779.0,62778.0,0.40941979]
[1728875425556,0.00027121,62779.0,62778.0,0.5706438]
[1728875425776,0.00027121,62779.0,62778.0,0.59037646]
[1728875426890,0.00027121,62779.0,62778.0,0.60337646]
[1728875427825,0.00027121,62779.0,62778.0,0.61537646]
[1728875428724,0.00027121,62779.0,62778.0,0.60337646]
[1728875429050,0.00027121,62779.0,62778.0,0.61637646]
[1728875430844,0.00027121,62779.0,62778.0,0.64377079]
[1728875431951,0.00027121,62779.0,62778.0,0.63454222]
[1728875433782,0.09997121,62779.0,62778.0,0.63454222]
[1728875437654,0.00027121,62779.0,62778.0,0.63454222]
[1728875437899,0.00109021,62779.0,62778.0,0.63454222]
[1728875441151,0.00109021,62779.0,62778.0,0.68221549]
[1728875441609,0.00109021,62779.0,62778.0,0.68222667]
[1728875441826,0.00109021,62779.0,62778.0,0.67722667]
[1728875442805,0.00109021,62779.0,62778.0,0.62954222]
[1728875446296,0.09189021,62779.0,62778.0,0.62954222]
[1728875448163,0.09189021,62779.0,62778.0,0.67723391]
[1728875449704,0.09189021,62779.0,62778.0,0.65123391]
[1728875449921,0.09189021,62779.0,62778.0,0.61654222]
[1728875450139,0.09189021,62779.0,62778.0,0.67887191]
[1728875450382,0.09189021,62779.0,62778.0,0.66587191]
[1728875450612,0.09189021,62779.0,62778.0,0.66687191]
[1728875450822,0.09189021,62779.0,62778.0,0.68087191]
[1728875451251,0.09189021,62779.0,62778.0,0.68088326]
[1728875454389,0.09189021,62779.0,62778.0,0.63318022]
[1728875455293,0.00109021,62779.0,62778.0,0.70473479]
[1728875455565,0.00109021,62779.0,62778.0,0.83928543]
[1728875455790,0.00109021,62779.0,62778.0,1.00822046]
[1728875456261,0.0935,62787.0,62786.0,0.00258724]
[1728875456486,0.0935,62787.0,62786.0,0.67820535]
[1728875457006,0.000819,62788.0,62787.0,0.29181524]
[1728875457222,0.000819,62788.0,62787.0,0.47922407]
[1728875457444,0.000819,62788.0,62787.0,0.48852473]
[1728875457687,0.000819,62788.0,62787.0,0.48652473]
[1728875458112,0.000819,62788.0,62787.0,0.53421665]
[1728875458336,0.000819,62788.0,62787.0,0.53621665]
[1728875459008,0.000819,62788.0,62787.0,0.48852473]
[1728875459495,0.000819,62788.0,62787.0,0.49952473]
[1728875459727,0.000819,62788.0,62787.0,0.53621665]
[1728875459958,0.000819,62788.0,62787.0,0.48852473]
[1728875460193,0.000819,62788.0,62787.0,0.51652473]
[1728875460864,0.000819,62788.0,62787.0,0.56421665]
[1728875461092,0.00062618,62788.0,62787.0,0.56421665]
[1728875461547,0.00062618,62788.0,62787.0,0.6767982]
[1728875461784,0.00062618,62788.0,62787.0,0.56421665]
[1728875462000,0.00062618,62788.0,62787.0,0.51652473]
[1728875462223,0.00062618,62788.0,62787.0,0.56921665]
[1728875462675,0.00062618,62788.0,62787.0,0.52152473]
[1728875462892,0.00062618,62788.0,62787.0,0.51952473]
[1728875463123,0.00062618,62788.0,62787.0,0.61810628]
[1728875463575,0.00062618,62788.0,62787.0,0.55314749]
[1728875463579,0.00062618,62788.0,62787.0,0.66572904]
[1728875463799,0.00062618,62788.0,62787.0,0.56914749]
[1728875464076,0.23772356,62807.0,62798.0,0.31678724]
[1728875464296,0.23772356,62807.0,62806.0,0.15980724]
[1728875464517,0.23772356,62807.0,62806.0,0.57815435]
[1728875464743,0.23772356,62807.0,62806.0,0.49897405]
[1728875464965,0.0973,62809.0,62808.0,0.19176224]
[1728875465183,0.0973,62809.0,62808.0,0.35298625]
[1728875465420,0.0973,62809.0,62808.0,0.36338299]
[1728875465904,0.0923,62809.0,62808.0,0.36338299]
[1728875466391,0.0923,62809.0,62808.0,0.37538299]
[1728875466683,0.0923,62809.0,62808.0,0.37438299]
[1728875467129,0.0923,62809.0,62808.0,0.38538299]
[1728875467838,0.171,62809.0,62808.0,0.38538299]
[1728875468325,0.171,62809.0,62808.0,0.36338299]
[1728875468569,0.171,62809.0,62808.0,0.38338299]
[1728875468808,0.171,62809.0,62808.0,0.37338299]
[1728875469049,0.171,62809.0,62808.0,0.36338299]
[1728875469288,0.171,62809.0,62808.0,0.37738299]
[1728875469780,0.171,62809.0,62808.0,0.37338299]
[1728875470015,0.171,62809.0,62808.0,0.36938299]
[1728875471450,0.171,62809.0,62808.0,0.37438299]
[1728875473802,0.171819,62809.0,62808.0,0.37438299]
[1728875477453,0.171819,62809.0,62808.0,0.45500454]
[1728875478116,0.171819,62809.0,62808.0,0.44400454]
[1728875478571,0.171819,62809.0,62808.0,0.44800454]
[1728875478861,0.171819,62809.0,62808.0,0.44600454]
[1728875479086,0.171819,62809.0,62808.0,0.44400454]
[1728875479325,0.171819,62809.0,62808.0,0.44500454]
[1728875485815,0.171819,62809.0,62808.0,0.44664254]
[1728875488650,0.171819,62809.0,62808.0,0.01362198]
[1728875488895,0.171819,62809.0,62808.0,0.01303474]
[1728875489802,0.171819,62809.0,62808.0,0.01203474]
[1728875490506,0.17579948,62809.0,62808.0,0.01203474]
[1728875491183,0.171819,62809.0,62808.0,0.01362198]
[1728875491432,0.171819,62809.0,62808.0,0.01462198]
[1728875491886,0.171819,62809.0,62808.0,0.01403474]
[1728875492389,0.17579948,62809.0,62808.0,0.01403474]
[1728875493071,0.171819,62809.0,62808.0,0.44764254]
[1728875493288,0.171819,62809.0,62808.0,0.44664254]
[1728875494502,0.171819,62809.0,62808.0,0.44564254]
[1728875500490,0.171819,62809.0,62808.0,0.44664254]
[1728875500937,0.171819,62809.0,62808.0,0.44864254]
[1728875501350,0.171819,62809.0,62808.0,0.45264254]
[1728875506409,0.171819,62809.0,62808.0,0.44864254]
[1728875506659,0.171819,62809.0,62808.0,0.44964254]
[1728875507104,0.171819,62809.0,62808.0,0.44864254]
[1728875507519,0.171819,62809.0,62808.0,0.45264254]
[1728875512209,0.171819,62809.0,62808.0,0.45787273]
[1728875519700,0.171819,62809.0,62808.0,0.45368488]
[1728875526916,0.171819,62809.0,62808.0,0.34110333]
[1728875527148,0.171819,62809.0,62808.0,0.45368488]
[1728875529061,0.171819,62809.0,62808.0,0.46226576]
[1728875531607,0.171819,62809.0,62808.0,0.45826576]
[1728875531845,0.171819,62809.0,62808.0,0.45926576]
[1728875532317,0.171819,62809.0,62808.0,0.45826576]
[1728875532548,0.171819,62809.0,62808.0,0.45526576]
[1728875532825,0.171819,62809.0,62808.0,0.45926576]
[1728875533517,0.171819,62809.0,62808.0,0.46226576]
[1728875533998,0.171819,62809.0,62808.0,0.48526576]
[1728875537039,0.171819,62809.0,62808.0,0.49193873]
[1728875537781,0.171819,62809.0,62808.0,0.47859222]
[1728875538928,0.171819,62809.0,62808.0,0.36601067]
[1728875539159,0.37887151,62809.0,62808.0,0.02198442]
[1728875539429,0.40279177,62809.0,62808.0,0.02198442]
[1728875539667,0.59938539,62809.0,62808.0,0.008638]
[1728875539907,0.62328896,62809.0,62808.0,0.008638]
[1728875540154,0.50368768,62809.0,62808.0,0.008638]
[1728875540651,0.50368768,62809.0,62808.0,0.001638]
[1728875541572,0.50368768,62809.0,62808.0,0.002638]
[1728875542043,0.61626923,62809.0,62808.0,0.001638]
[1728875542497,0.61626923,62809.0,62808.0,0.002638]
[1728875542728,0.61826923,62809.0,62808.0,0.003638]
[1728875542958,0.62046333,62809.0,62808.0,0.003638]
[1728875543186,0.61846333,62809.0,62808.0,0.003638]
[1728875543417,0.62046333,62809.0,62808.0,0.003638]
[1728875543671,0.61846333,62809.0,62808.0,0.003638]
[1728875543905,0.159233,62801.0,62800.0,0.23772356]
[1728875544131,0.41291256,62801.0,62800.0,0.23772356]
[1728875544363,0.318462,62802.0,62794.0,0.049398]
[1728875544364,0.0831,62797.0,62794.0,0.208647]
[1728875544597,0.0949,62795.0,62794.0,0.208647]
[1728875544840,0.0831,62794.0,62793.0,0.03196]
[1728875545071,0.178,62794.0,62793.0,0.03196]
[1728875545300,0.18198151,62794.0,62793.0,0.03196]
[1728875545744,0.18198151,62794.0,62793.0,0.159253]
[1728875546006,0.08708151,62794.0,62790.0,0.31910824]
[1728875546204,0.10804998,62794.0,62793.0,0.159253]
[1728875546684,0.20294998,62794.0,62793.0,0.159253]
[1728875547377,0.20294998,62794.0,62793.0,0.164253]
[1728875547836,0.20294998,62794.0,62793.0,0.169253]
[1728875548353,0.20294998,62794.0,62793.0,0.164253]
[1728875548842,0.20394998,62794.0,62793.0,0.01150679]
[1728875549040,0.20394998,62794.0,62793.0,0.01350679]
[1728875549300,0.20793145,62794.0,62793.0,0.01150679]
[1728875549491,0.20893145,62794.0,62793.0,0.01150679]
[1728875549735,0.20893145,62794.0,62793.0,0.17075979]
[1728875549952,0.20793145,62794.0,62793.0,0.01150679]
[1728875550196,0.20793145,62794.0,62793.0,0.17075979]
[1728875550417,0.20494998,62794.0,62793.0,0.17075979]
[1728875553138,0.179,62794.0,62793.0,0.17075979]
[1728875553615,0.18,62794.0,62793.0,0.17075979]
[1728875553837,0.179,62794.0,62793.0,0.17075979]
[1728875554069,0.0959,62794.0,62793.0,0.17075979]
[1728875554296,0.001,62794.0,62793.0,0.3549838]
[1728875554516,0.001,62794.0,62793.0,0.3869438]
[1728875555420,0.0921,62801.0,62800.0,0.159235]
[1728875555658,0.0921,62801.0,62800.0,0.27181655]
[1728875555951,0.0921,62801.0,62800.0,0.28332584]
[1728875556186,0.000819,62809.0,62800.0,0.28332584]
[1728875556187,0.11864575,62806.0,62805.0,0.159222]
[1728875556429,0.11864575,62806.0,62805.0,0.27180355]
[1728875556647,0.11864575,62806.0,62805.0,0.28328425]
[1728875557363,0.11964575,62806.0,62805.0,0.28328425]
[1728875558038,0.02594575,62806.0,62805.0,0.70581906]
[1728875558265,0.001,62806.0,62805.0,0.38747395]
[1728875558486,0.001,62806.0,62805.0,0.38847395]
[1728875558926,0.001,62806.0,62805.0,0.38747395]
[1728875559168,0.000819,62808.0,62805.0,0.22825195]
[1728875559390,0.000819,62808.0,62807.0,0.32734579]
[1728875559619,0.000819,62808.0,62807.0,0.4885698]
[1728875559882,0.000819,62808.0,62807.0,0.50461284]
[1728875560098,0.000819,62808.0,62807.0,0.5086236]
[1728875561272,0.000819,62808.0,62807.0,0.5176236]
[1728875562017,0.000819,62808.0,62807.0,0.5256236]
[1728875562925,0.000819,62808.0,62807.0,0.53745831]
[1728875563380,0.000819,62808.0,62807.0,0.42487676]
[1728875563643,0.000819,62808.0,62807.0,0.53745831]
[1728875570501,0.000819,62808.0,62807.0,0.65003986]
[1728875570723,0.000819,62808.0,62807.0,0.65167786]
[1728875571448,0.000819,62808.0,62807.0,0.64267786]
[1728875571661,0.000819,62808.0,62807.0,0.64867786]
[1728875572535,0.000819,62808.0,62807.0,0.66267786]
[1728875573181,0.000819,62808.0,62807.0,0.76267786]
[1728875575412,0.000819,62808.0,62807.0,0.83957786]
[1728875576093,0.000819,62808.0,62807.0,0.82557786]
[1728875577427,0.000819,62808.0,62807.0,0.82057786]
[1728875577651,0.000819,62808.0,62807.0,0.82957786]
[1728875577856,0.000819,62808.0,62807.0,0.82057786]
[1728875578074,0.000819,62808.0,62807.0,0.82957786]
[1728875580000,0.000819,62808.0,62807.0,0.83157786]
[1728875580462,0.000819,62808.0,62807.0,0.82957786]
[1728875580689,0.0001,62816.0,62815.0,0.00058724]
[1728875580912,0.0001,62816.0,62815.0,0.4885498]
[1728875581130,0.0001,62816.0,62815.0,0.62107801]
[1728875582318,0.0001,62816.0,62815.0,0.63307801]
[1728875582562,0.0001,62816.0,62815.0,0.91315956]
[1728875582793,0.0912,62830.0,62829.0,0.182162]
[1728875583031,0.0912,62830.0,62829.0,0.58841532]
[1728875583294,0.0912,62830.0,62829.0,0.62037532]
[1728875583541,0.0792,62833.0,62832.0,0.159154]
[1728875583542,0.1704,62833.0,62832.0,0.159154]
[1728875583778,0.1704,62833.0,62832.0,0.45595956]
[1728875583993,0.1704,62833.0,62832.0,0.47580552]
[1728875585105,0.1704,62833.0,62832.0,0.47880552]
[1728875585325,0.1704,62833.0,62832.0,0.71952908]
[1728875585553,0.0912,62833.0,62832.0,0.47580552]
[1728875586008,0.0912,62833.0,62832.0,0.47639276]
[1728875586460,0.0912,62833.0,62832.0,0.47077409]
[1728875586772,0.0912,62833.0,62832.0,0.47177409]
[1728875587213,0.0912,62833.0,62832.0,0.47077409]
[1728875587653,0.0912,62833.0,62832.0,0.47277409]
[1728875588092,0.0912,62833.0,62832.0,0.47577409]
[1728875591445,0.1735,62837.0,62833.0,0.023]
[1728875591661,0.1735,62837.0,62834.0,0.36032566]
[1728875591907,0.1735,62837.0,62834.0,0.357143]
[1728875594291,0.1735,62837.0,62834.0,0.358143]
[1728875594559,0.1735,62837.0,62834.0,0.335143]
[1728875594811,0.1735,62837.0,62834.0,0.336143]
[1728875597676,0.0943,62837.0,62834.0,0.336143]
[1728875599266,0.000819,62838.0,62834.0,0.359143]
[1728875600763,0.000819,62838.0,62834.0,0.47172455]
[1728875602316,0.091519,62835.0,62834.0,0.44872455]
[1728875606948,0.000819,62835.0,62834.0,0.44872455]
[1728875610219,0.000819,62835.0,62834.0,0.47172455]
[1728875612256,0.000819,62835.0,62834.0,0.7162661]
[1728875613128,0.000819,62835.0,62834.0,0.7172661]
[1728875613339,0.000819,62835.0,62834.0,0.7232661]
[1728875614216,0.000819,62835.0,62834.0,0.7222661]
[1728875614442,0.000819,62835.0,62834.0,0.7312661]
[1728875614652,0.000819,62835.0,62834.0,0.8100661]
[1728875614869,0.000819,62835.0,62834.0,0.7930661]
[1728875615079,0.000819,62835.0,62834.0,0.8110661]
[1728875615312,0.000819,62835.0,62834.0,0.8240661]
[1728875616424,0.000819,62835.0,62834.0,2.1006661]
[1728875618972,0.000819,62835.0,62834.0,2.0238661]
[1728875619631,0.000819,62835.0,62834.0,2.0218661]
[1728875623577,0.091,62853.0,62850.0,0.15969524]
[1728875623812,0.23772356,62852.0,62850.0,0.5722641]
[1728875624006,0.091,62853.0,62850.0,0.61410594]
[1728875625342,0.091,62853.0,62850.0,0.62210594]
[1728875626428,0.091,62853.0,62850.0,0.63010594]
[1728875627062,0.091,62853.0,62850.0,0.73010594]
[1728875627505,0.085809,62853.0,62852.0,0.19165024]
[1728875627724,0.085809,62853.0,62852.0,0.37905583]
[1728875627963,0.085809,62853.0,62852.0,0.38891533]
[1728875628639,0.085809,62853.0,62852.0,0.39491533]
[1728875629320,0.085809,62853.0,62852.0,0.38891533]
[1728875629554,0.085809,62853.0,62852.0,0.39591533]
[1728875629773,0.091819,62853.0,62852.0,0.39591533]
[1728875629985,0.091819,62853.0,62852.0,0.40191533]
[1728875630221,0.091819,62853.0,62852.0,0.39591533]
[1728875630652,0.091819,62853.0,62852.0,0.40291533]
[1728875631735,0.092638,62853.0,62852.0,0.40291533]
[1728875631958,0.092638,62853.0,62852.0,0.43080114]
[1728875632176,0.092638,62853.0,62852.0,0.54338269]
[1728875632399,0.092638,62853.0,62852.0,0.43080114]
[1728875634207,0.092638,62853.0,62852.0,0.54338269]
[1728875635534,0.092638,62853.0,62852.0,0.51142269]
[1728875635993,0.092638,62853.0,62852.0,0.54333269]
[1728875636211,0.092638,62853.0,62852.0,0.53633269]
[1728875636431,0.092638,62853.0,62852.0,0.52933269]
[1728875636692,0.092638,62853.0,62852.0,0.53533269]
[1728875636904,0.092638,62853.0,62852.0,0.42275114]
[1728875637119,0.092638,62853.0,62852.0,0.52933269]
[1728875637336,0.092638,62853.0,62852.0,0.53433269]
[1728875638199,0.092638,62853.0,62852.0,0.54033269]